bitfinex/quotes_ETHUSD_20250722
["timestamp","ask_amount","ask_price","bid_price","bid_amount"]
[1753183355847,4.248,3694.1,3693.9,2.84234554]
[1753183356090,4.248,3694.1,3694.0,0.25172112]
[1753183356391,4.248,3694.1,3694.0,2.9588137]
[1753183356555,4.248,3694.1,3694.0,0.25172112]
[1753183356754,4.248,3694.1,3694.0,0.25170754]
[1753183357922,4.248,3694.1,3694.0,2.95880012]
[1753183358090,4.248,3694.1,3694.0,0.25170754]
[1753183358592,4.248,3694.1,3694.0,2.95880012]
[1753183358894,4.248,3694.1,3694.0,3.40710012]
[1753183359089,4.248,3694.1,3694.0,0.70000754]
[1753183359291,4.24,3694.1,3694.0,0.70000754]
[1753183359489,4.24,3694.1,3694.0,3.40706893]
[1753183359997,0.002,3694.3,3694.2,3.49444602]
[1753183360200,4.24,3694.3,3694.2,3.74615356]
[1753183360401,4.24,3694.3,3694.2,4.32965356]
[1753183360717,0.002,3694.3,3694.2,4.32965356]
[1753183365314,0.002,3694.3,3694.2,3.88135356]
[1753183365514,0.002,3694.3,3694.2,4.74115246]
[1753183367223,0.002,3694.3,3694.2,4.32965356]
[1753183369195,0.002,3694.3,3694.2,8.55765356]
[1753183370230,0.002,3694.3,3694.2,5.85070754]
[1753183370399,0.002,3694.3,3694.2,0.38690754]
[1753183370400,0.4405,3694.3,3694.2,0.38690754]
[1753183370604,3.18120864,3694.3,3694.2,0.25170754]
[1753183370928,3.14737274,3694.3,3694.2,0.25170754]
[1753183371104,0.4405,3694.3,3694.2,0.25170754]
[1753183371614,3.14737274,3694.3,3694.2,0.25170754]
[1753183371926,4.226,3694.3,3694.2,0.25170754]
[1753183372651,18.726,3694.3,3694.2,0.25170754]
[1753183375054,18.725,3694.3,3694.2,0.25170754]
[1753183375357,18.725,3694.3,3694.2,3.09385356]
[1753183375516,4.225,3694.3,3694.2,0.38690754]
[1753183375718,0.002,3694.3,3694.2,0.38690754]
[1753183375958,4.225,3694.3,3694.2,3.09385356]
[1753183376249,4.225,3694.3,3694.2,0.38690754]
[1753183376448,0.002,3694.3,3694.2,0.38690754]
[1753183378923,0.002,3694.3,3694.2,3.09385356]
[1753183379127,0.002,3694.3,3694.2,3.53265356]
[1753183379449,0.002,3694.3,3694.2,0.38690754]
[1753183379651,0.4405,3694.3,3694.2,0.25170754]
[1753183380429,3.18120864,3694.3,3694.2,0.25170754]
[1753183380652,3.31640864,3694.3,3694.2,0.25170754]
[1753183380858,33.83257274,3694.3,3694.2,0.25170754]
[1753183381517,34.60277274,3694.3,3694.2,0.25170754]
[1753183382737,49.10277274,3694.3,3694.2,0.25170754]
[1753183382934,15.8459,3694.3,3694.2,0.25170754]
[1753183383155,14.502,3694.3,3694.2,0.25170754]
[1753183383360,18.724,3694.3,3694.2,0.25170754]
[1753183385359,19.1625,3694.3,3694.2,0.25170754]
[1753183385865,14.9405,3694.3,3694.2,0.25170754]
[1753183386159,19.1625,3694.3,3694.2,0.25170754]
[1753183387455,21.86937274,3694.3,3694.2,0.25170754]
[1753183387660,19.1625,3694.3,3694.2,0.25170754]
[1753183389251,19.1625,3694.3,3694.2,1.06200754]
[1753183389252,0.002,3694.3,3694.2,1.06200754]
[1753183389431,0.002,3694.3,3694.2,4.34295356]
[1753183389762,0.002,3694.3,3694.2,5.05065885]
[1753183393154,0.002,3694.3,3694.2,4.79895131]
[1753183393355,0.002,3694.3,3694.2,5.05087244]
[1753183394163,0.002,3694.3,3694.2,1.19741968]
[1753183394460,0.002,3694.3,3694.2,0.38711968]
[1753183395052,4.224,3694.3,3694.2,3.0940657]
[1753183395456,4.224,3694.3,3694.2,3.5328657]
[1753183395657,4.224,3694.3,3694.2,3.28094602]
[1753183395876,4.224,3694.3,3694.2,3.5328897]
[1753183397546,0.002,3694.3,3694.2,4.15688691]
[1753183398077,0.002,3694.3,3694.2,0.38722743]
[1753183398493,3.89927274,3694.3,3694.2,0.25202743]
[1753183398679,3.93310864,3694.3,3694.2,0.25202743]
[1753183398982,4.06830864,3694.3,3694.2,0.25202743]
[1753183399283,18.53447274,3694.3,3694.2,0.25202743]
[1753183400668,19.08447274,3694.3,3694.2,0.25202743]
[1753183401678,19.88447274,3694.3,3694.2,0.25202743]
[1753183402402,24.10547274,3694.3,3694.2,0.25202743]
[1753183407801,19.88447274,3694.3,3694.2,0.25202743]
[1753183407977,24.10547274,3694.3,3694.2,0.25202743]
[1753183408181,23.12627274,3694.3,3693.7,2.70729085]
[1753183408381,2.70694602,3694.2,3693.8,0.25190009]
[1753183408579,6.9280651,3694.1,3693.9,0.25190009]
[1753183408903,2.70720543,3693.9,3693.4,0.1352]
[1753183409099,7.06322045,3694.1,3693.5,0.25195646]
[1753183409100,6.92825021,3693.8,3693.5,0.25195646]
[1753183409314,4.221,3693.7,3693.6,0.25195646]
[1753183410003,6.92831245,3693.7,3693.6,0.25195646]
[1753183410180,8.17471245,3693.7,3693.6,0.25195646]
[1753183410514,11.17471245,3693.7,3693.6,0.25195646]
[1753183410675,41.72471245,3693.7,3693.6,0.25195646]
[1753183410876,41.66831245,3693.7,3693.6,0.25195646]
[1753183411299,56.16831245,3693.7,3693.6,0.25195646]
[1753183411607,26.16831245,3693.7,3693.6,0.25195646]
[1753183412100,56.16831245,3693.7,3693.6,0.25195646]
[1753183414597,56.30368066,3693.7,3693.6,0.25195646]
[1753183417012,56.30368066,3693.7,3693.0,1e-08]
[1753183417013,3.25775229,3693.1,3693.0,1e-08]
[1753183417188,7.07745229,3693.1,3693.0,1e-08]
[1753183417513,4.221,3693.1,3693.0,1e-08]
[1753183417810,2.7072158,3693.9,3693.0,0.45510001]
[1753183418010,0.7701,3694.2,3693.3,2.70756067]
[1753183418216,5.70710381,3694.0,3693.4,0.48217532]
[1753183418417,5.70710381,3694.0,3693.4,3.16263185]
[1753183418418,4.221,3693.9,3693.4,3.16263185]
[1753183418595,4.221,3693.9,3693.4,0.4551]
[1753183418907,6.92830992,3693.8,3693.5,0.4551]
[1753183419114,4.221,3693.8,3693.2,2.70766315]
[1753183419328,4.221,3693.8,3693.5,0.4551]
[1753183420019,6.92825309,3693.8,3693.5,0.4551]
[1753183420328,4.221,3693.8,3693.5,0.4551]
[1753183421124,6.92824107,3693.8,3693.5,0.4551]
[1753183422101,4.221,3693.8,3693.5,0.4551]
[1753183422404,14.5,3694.1,3693.7,0.767]
[1753183422732,4.221,3694.0,3693.9,2.70715503]
[1753183422943,0.802,3694.3,3694.0,0.7784]
[1753183423086,4.221,3694.2,3694.1,2.7070193]
[1753183423428,0.802,3694.3,3694.1,0.4551]
[1753183423595,4.221,3694.2,3694.0,3.83402773]
[1753183423923,4.221,3694.2,3694.1,2.7070193]
[1753183424099,4.221,3694.2,3694.1,0.4551]
[1753183424301,0.802,3694.3,3694.1,3.16210297]
[1753183424489,4.221,3694.2,3694.0,1.12695659]
[1753183424689,4.221,3694.2,3694.1,0.4551]
[1753183425526,4.221,3694.2,3694.1,3.1621193]
[1753183425824,0.802,3694.3,3694.2,2.70694602]
[1753183426187,5.023,3694.3,3694.2,3.16374602]
[1753183426891,0.802,3694.3,3694.2,3.82866788]
[1753183427091,0.802,3694.3,3694.2,3.96386788]
[1753183427301,5.022,3694.3,3694.2,3.96386788]
[1753183428618,0.802,3694.3,3694.2,3.96386788]
[1753183428823,5.022,3694.3,3694.2,3.96386788]
[1753183428987,5.022,3694.3,3694.2,4.21529797]
[1753183429621,5.022,3694.3,3694.2,4.21523596]
[1753183430917,0.802,3694.3,3694.2,4.21523596]
[1753183431105,0.802,3694.3,3694.2,5.04843596]
[1753183432814,0.802,3694.3,3694.2,5.07550542]
[1753183433018,0.002,3694.3,3694.2,5.04843596]
[1753183433198,0.002,3694.3,3694.2,9.26843596]
[1753183435217,0.002,3694.3,3694.2,8.1467141]
[1753183435420,0.002,3694.3,3694.2,5.43976808]
[1753183435590,0.002,3694.3,3694.2,1.21976808]
[1753183435793,0.002,3694.3,3694.2,3.9267141]
[1753183436194,0.002,3694.3,3694.2,4.3835141]
[1753183438318,0.002,3694.3,3694.2,4.84120069]
[1753183438520,0.002,3694.3,3694.2,4.38293791]
[1753183440131,0.002,3694.3,3694.2,1.21919189]
[1753183440433,0.002,3694.3,3694.2,0.38599189]
[1753183442912,0.5055359,3694.3,3694.2,0.25079189]
[1753183443106,0.4717,3694.3,3694.2,0.25079189]
[1753183443303,4.22,3694.3,3694.2,0.25079189]
[1753183443511,0.002,3694.3,3694.2,0.70759189]
[1753183443738,4.22,3694.3,3694.2,0.84279189]
[1753183443939,0.002,3694.3,3694.2,0.84279189]
[1753183444142,4.22,3694.3,3694.2,0.84279189]
[1753183444715,4.22,3694.3,3694.2,0.38599189]
[1753183445760,4.22,3694.3,3694.2,3.54973791]
[1753183445939,4.22,3694.3,3694.2,3.54998941]
[1753183446144,4.22,3694.3,3694.2,0.84304339]
[1753183448547,4.22,3694.3,3694.2,0.38624339]
[1753183448845,0.002,3694.3,3694.2,0.38624339]
[1753183452136,0.002,3694.3,3694.2,0.38709169]
[1753183453432,3.98010864,3694.3,3694.2,0.25189169]
[1753183453633,8.99710864,3694.3,3694.2,0.25189169]
[1753183453985,9.09847274,3694.3,3694.2,0.25189169]
[1753183454359,4.88147274,3694.3,3694.2,0.25189169]
[1753183454556,5.019,3694.3,3694.2,0.25189169]
[1753183455853,0.802,3694.3,3694.2,2.95883771]
[1753183456056,5.019,3694.3,3694.2,1.51447868]
[1753183456269,5.019,3694.3,3694.2,0.85239169]
[1753183457293,5.019,3694.3,3694.2,0.38709169]
[1753183457773,0.802,3694.3,3694.2,0.38709169]
[1753183457935,5.019,3694.3,3694.2,0.38709169]
[1753183458659,5.4878,3694.3,3694.2,0.38709169]
[1753183459077,8.19467274,3694.3,3694.2,0.38709169]
[1753183459777,8.19467274,3694.3,3694.2,0.25189169]
[1753183460988,11.50687274,3694.3,3693.8,0.1352]
[1753183461156,11.50687274,3694.3,3692.5,4.66]
[1753183461157,0.55,3693.7,3692.5,0.4653]
[1753183461357,2.70738784,3693.6,3692.7,3.17329054]
[1753183461553,2.70753455,3693.4,3692.7,0.4653]
[1753183461753,6.92460761,3693.3,3692.7,0.4653]
[1753183462163,6.92460904,3693.3,3692.4,0.7727]
[1753183462496,3.17653288,3693.2,3692.5,2.70818934]
[1753183462657,7.74605229,3693.1,3692.4,0.7727]
[1753183462857,4.217,3693.1,3692.6,0.4653]
[1753183463087,6.92475229,3693.1,3692.6,0.4653]
[1753183463590,6.92475229,3693.1,3692.4,3.4809551]
[1753183463792,4.217,3693.1,3692.5,0.4653]
[1753183463996,4.217,3693.1,3692.5,3.17348495]
[1753183464495,6.92475229,3693.1,3692.5,0.4653]
[1753183464660,7.39355229,3693.1,3692.5,0.4653]
[1753183466291,6.92475229,3693.1,3692.5,0.4653]
[1753183467493,7.39355229,3693.1,3692.4,0.7727]
[1753183467655,7.39355229,3693.1,3692.4,3.48096324]
[1753183467860,7.39355229,3693.1,3692.4,3.48095701]
[1753183468084,6.92475229,3693.1,3692.4,3.48095701]
[1753183468278,6.92475229,3693.1,3692.5,0.4653]
[1753183468794,6.92475229,3693.1,3692.5,3.17348582]
[1753183468991,4.217,3693.1,3692.6,2.70811465]
[1753183469191,4.217,3693.1,3693.0,1.21970001]
[1753183469373,4.217,3693.2,3693.0,4.51819949]
[1753183469570,4.217,3693.2,3693.0,1.34507806]
[1753183469911,2.70733195,3693.7,3693.1,0.4653]
[1753183470092,0.4688,3693.8,3693.2,2.70765875]
[1753183470273,0.7558,3693.9,3693.1,0.4653]
[1753183470474,0.78963957,3693.9,3693.1,0.858052]
[1753183470898,4.217,3693.8,3693.1,0.858052]
[1753183471088,4.217,3693.8,3693.5,0.1352]
[1753183471801,6.92424085,3693.8,3693.5,0.1352]
[1753183472723,6.92424085,3693.8,3693.0,3.46221998]
[1753183472724,0.5026414,3693.7,3693.0,0.75440001]
[1753183472863,3.47385331,3693.3,3693.0,1e-08]
[1753183473069,6.92469441,3693.2,3693.1,0.25136131]
[1753183473265,38.24089441,3693.2,3693.1,0.25136131]
[1753183473609,11.70969441,3693.2,3693.1,0.25136131]
[1753183473786,21.99269441,3693.2,3693.1,0.25136131]
[1753183473989,26.20969441,3693.2,3693.1,0.25136131]
[1753183474904,56.20969441,3693.2,3693.1,0.25136131]
[1753183475075,51.99269441,3693.2,3693.1,0.25136131]
[1753183475282,26.20969441,3693.2,3693.1,0.25136131]
[1753183475905,21.99269441,3693.2,3693.1,0.25136131]
[1753183476277,26.20969441,3693.2,3693.1,0.25136131]
[1753183478771,6.25775229,3693.1,3693.0,1e-08]
[1753183478972,6.92475229,3693.1,3693.0,0.251397]
[1753183480372,7.39355229,3693.1,3693.0,0.251397]
[1753183481803,3.17655229,3693.1,3693.0,0.251397]
[1753183482107,7.39355229,3693.1,3693.0,0.251397]
[1753183482613,21.89355229,3693.1,3693.0,0.251397]
[1753183484491,14.5,3693.1,3693.0,0.251397]
[1753183484678,0.8,3693.2,3693.0,0.851897]
[1753183484879,0.8,3693.2,3693.1,3.58998898]
[1753183485085,5.017,3693.2,3693.1,3.58998898]
[1753183485810,0.8,3693.2,3693.1,3.58998898]
[1753183486012,0.8,3693.2,3693.1,4.4056665]
[1753183486315,0.1372,3694.3,3693.9,2.70714349]
[1753183486476,14.5,3694.2,3694.0,0.25139699]
[1753183486684,14.5,3694.2,3694.1,0.25139699]
[1753183487013,18.717,3694.2,3694.1,0.25139699]
[1753183487721,0.002,3694.3,3694.2,2.70694602]
[1753183487935,4.219,3694.3,3694.2,0.69579699]
[1753183488213,4.219,3694.3,3694.2,3.40274301]
[1753183488434,4.219,3694.3,3694.2,0.4444]
[1753183488726,4.219,3694.3,3694.2,0.69607886]
[1753183490602,4.219,3694.3,3694.2,3.40302488]
[1753183490802,4.218,3694.3,3694.2,3.40302488]
[1753183491243,0.002,3694.3,3694.2,2.95862488]
[1753183491442,4.218,3694.3,3694.2,3.40302488]
[1753183492542,1e-08,3695.1,3695.0,3.49475994]
[1753183492727,0.002,3696.3,3695.7,3.49424733]
[1753183492909,0.002,3696.3,3695.7,3.74592619]
[1753183493104,0.002,3696.3,3695.7,3.77298466]
[1753183493310,0.002,3696.3,3695.7,5.28687664]
[1753183494222,0.002,3696.3,3695.7,5.25981817]
[1753183496233,0.002,3696.3,3695.7,2.55397084]
[1753183496558,0.002,3696.3,3695.7,5.25981817]
[1753183499653,0.002,3696.3,3695.7,2.55397084]
[1753183500749,2.70777412,3695.8,3695.7,0.25167886]
[1753183501068,3.18217412,3695.8,3695.7,0.25167886]
[1753183502623,2.70590736,3695.7,3695.3,0.1352]
[1753183502822,0.4744,3695.7,3695.3,0.1352]
[1753183503040,3.18024829,3695.7,3695.3,0.1352]
[1753183503238,14.5,3695.6,3695.3,0.1352]
[1753183507232,2.70778602,3695.8,3694.9,5.27627886]
[1753183507233,0.002,3695.8,3695.7,2.70584733]
[1753183507430,0.002,3695.8,3695.7,3.1773058]
[1753183508835,0.002,3695.8,3695.7,3.15024733]
[1753183510278,0.002,3695.8,3695.7,3.1773058]
[1753183510943,0.002,3695.8,3695.7,3.15024733]
[1753183511293,0.002,3695.8,3695.7,4.23576512]
[1753183511958,0.002,3695.8,3695.7,8.89576512]
[1753183514361,0.002,3695.8,3695.7,12.69716512]
[1753183514562,0.002,3695.8,3695.7,12.94710657]
[1753183516410,0.002,3696.6,3696.2,2.7054813]
[1753183516704,0.002,3696.6,3696.2,3.4965275]
[1753183516861,0.002,3696.6,3696.2,4.6996275]
[1753183517057,0.002,3696.6,3696.2,7.72668231]
[1753183517292,0.002,3696.6,3696.2,7.8348275]
[1753183517859,0.002,3696.6,3696.5,3.46176173]
[1753183518088,0.002,3696.6,3696.5,8.97500938]
[1753183518295,0.002,3696.6,3696.5,9.52685677]
[1753183518504,0.1352,3698.1,3696.5,9.52685677]
[1753183518505,0.002,3698.2,3698.1,2.70409129]
[1753183518659,0.002,3698.2,3698.1,3.71082803]
[1753183518856,0.002,3698.2,3698.1,5.21722873]
[1753183520210,0.002,3698.2,3698.1,9.46726964]
[1753183520388,0.002,3698.6,3698.4,2.70387194]
[1753183520593,0.002,3698.6,3698.4,10.20314739]
[1753183520908,0.002,3698.6,3698.4,11.37630868]
[1753183521061,0.002,3698.6,3698.4,13.16101491]
[1753183521265,1e-08,3698.6,3698.5,3.25379883]
[1753183521606,1e-08,3698.6,3698.5,12.327923]
[1753183521813,1e-08,3698.6,3698.5,15.30088502]
[1753183522165,1e-08,3698.6,3698.5,18.14888502]
[1753183522474,1e-08,3698.6,3698.5,20.83483134]
[1753183523400,1e-08,3698.6,3698.5,17.98683134]
[1753183524730,1e-08,3698.6,3698.5,9.83880556]
[1753183525765,1e-08,3698.6,3698.5,13.61510556]
[1753183526187,1e-08,3698.6,3698.5,14.05880556]
[1753183526404,1e-08,3698.6,3698.5,21.65545501]
[1753183526708,1e-08,3698.6,3698.5,22.20545501]
[1753183527263,1e-08,3698.6,3698.5,26.86545501]
[1753183527869,1e-08,3698.6,3698.5,26.80445501]
[1753183528301,0.002,3699.0,3698.9,2.70350644]
[1753183528611,1e-08,3700.7,3700.6,2.70226449]
[1753183528770,1e-08,3700.7,3700.6,19.54757435]
[1753183529503,1e-08,3700.7,3700.6,2.9511249]
[1753183530095,0.42860001,3700.7,3700.6,2.9511249]
[1753183530403,0.42860001,3700.7,3700.6,0.24886041]
[1753183530972,1.20790001,3700.7,3700.6,0.24886041]
[1753183532113,3.91009148,3700.7,3700.6,0.24886041]
[1753183532271,1.20790001,3700.7,3700.6,0.24886041]
[1753183532918,1.20790001,3700.7,3700.6,2.9511249]
[1753183533432,1e-08,3700.7,3700.6,2.9511249]
[1753183533847,0.42860001,3700.7,3700.6,0.24886041]
[1753183534253,3.90699148,3700.7,3700.6,0.24886041]
[1753183534578,8.14499148,3700.7,3700.6,0.24886041]
[1753183534765,5.44280001,3700.7,3700.6,0.24886041]
[1753183535363,5.44280001,3700.7,3700.0,2.70263136]
[1753183535674,0.4286,3700.6,3700.0,2.70263651]
[1753183536387,0.4286,3700.6,3700.1,2.70262879]
[1753183537390,4.235,3700.5,3700.2,2.70255388]
[1753183537746,0.4286,3700.4,3700.2,2.70255388]
[1753183537941,0.77620001,3700.7,3700.6,2.70226449]
[1753183538207,1e-08,3700.7,3700.6,6.96676449]
[1753183538498,1e-08,3701.1,3701.0,5.70197243]
[1753183538789,1e-08,3701.1,3701.0,5.83637243]
[1753183538995,1e-08,3701.1,3701.0,6.28007243]
[1753183539200,1e-08,3701.1,3701.0,8.63186402]
[1753183539656,1e-08,3701.1,3701.0,8.87935105]
[1753183540257,1e-08,3701.1,3701.0,8.43565105]
[1753183540563,1e-08,3701.1,3701.0,8.4355836]
[1753183541064,1e-08,3701.1,3701.0,8.8792836]
[1753183541466,1e-08,3701.1,3701.0,8.4355836]
[1753183542685,1e-08,3701.1,3701.0,3.08379201]
[1753183543655,0.42860001,3701.1,3701.0,3.08379201]
[1753183544564,1.25640001,3701.1,3701.0,3.08379201]
[1753183545110,1.25640001,3701.1,3701.0,0.38181958]
[1753183545460,1.25640001,3701.1,3701.0,0.24741958]
[1753183546188,1e-08,3701.1,3701.0,2.94939201]
[1753183546356,1e-08,3701.1,3701.0,3.64894201]
[1753183547272,1e-08,3701.1,3701.0,4.09444201]
[1753183547850,1e-08,3701.1,3701.0,4.12146173]
[1753183548056,1e-08,3701.1,3701.0,4.09444201]
[1753183548467,1e-08,3701.1,3701.0,2.94939201]
[1753183548893,1e-08,3701.1,3701.0,3.42191173]
[1753183549095,1e-08,3701.1,3701.0,3.39489201]
[1753183549297,1e-08,3701.1,3701.0,3.14747243]
[1753183549595,1e-08,3701.1,3701.0,4.2266015]
[1753183549768,1e-08,3701.1,3701.0,5.34296332]
[1753183550588,1e-08,3701.1,3701.0,4.89746332]
[1753183551476,1e-08,3701.1,3701.0,4.06726332]
[1753183552372,1e-08,3701.1,3701.0,4.06761578]
[1753183552694,1e-08,3701.1,3701.0,2.95125396]
[1753183552896,1e-08,3701.1,3701.0,2.95123516]
[1753183554262,1e-08,3701.1,3701.0,0.24926273]
[1753183554997,0.43960001,3701.1,3701.0,0.24926273]
[1753183555362,1.25480001,3701.1,3701.0,0.24926273]
[1753183557901,1.25480001,3701.1,3701.0,2.95123516]
[1753183558665,1.25480001,3701.1,3701.0,0.24926273]
[1753183559061,1.25480001,3701.1,3701.0,2.95123516]
[1753183559292,1.25480001,3701.1,3701.0,0.24926273]
[1753183559467,1.25480001,3701.1,3701.0,2.95123516]
[1753183559669,1.25480001,3701.1,3701.0,0.24926273]
[1753183563931,3.95669944,3701.1,3701.0,0.24926273]
[1753183564090,18.59109944,3701.1,3701.0,0.24926273]
[1753183564287,15.88920001,3701.1,3701.0,0.24926273]
[1753183564714,18.59109944,3701.1,3701.0,0.24926273]
[1753183564915,15.88920001,3701.1,3701.0,0.24926273]
[1753183565213,18.59109944,3701.1,3701.0,0.24926273]
[1753183565414,18.59109944,3701.1,3701.0,0.25026273]
[1753183566116,18.59109944,3701.1,3701.0,0.001]
[1753183566684,15.88920001,3701.1,3701.0,0.001]
[1753183566902,18.59109944,3701.1,3701.0,0.001]
[1753183567102,15.88920001,3701.1,3701.0,0.001]
[1753183567306,15.88920001,3701.1,3701.0,2.70297243]
[1753183567643,4.21400001,3701.1,3701.0,2.70297243]
[1753183567918,4.65360001,3701.1,3701.0,2.70297243]
[1753183568418,4.65360001,3701.1,3701.0,0.001]
[1753183568789,4.65360001,3701.1,3701.0,2.70297243]
[1753183568990,4.65360001,3701.1,3701.0,2.95357988]
[1753183569194,4.65360001,3701.1,3701.0,2.9535694]
[1753183569394,4.65360001,3701.1,3701.0,0.25159697]
[1753183569916,4.65360001,3701.1,3701.0,2.9535694]
[1753183570214,4.21500001,3701.1,3701.0,2.9535694]
[1753183571929,4.21200001,3701.1,3701.0,2.9535694]
[1753183572223,4.65160001,3701.1,3701.0,0.25159697]
[1753183572396,0.43960001,3701.1,3701.0,0.25159697]
[1753183572940,4.65060001,3701.1,3701.0,0.25159697]
[1753183573234,4.64960001,3701.1,3701.0,0.25159697]
[1753183574193,1e-08,3701.1,3701.0,2.9535694]
[1753183574394,4.21000001,3701.1,3701.0,2.9535694]
[1753183575027,1e-08,3701.1,3701.0,2.9535694]
[1753183575321,4.21000001,3701.1,3701.0,2.9535694]
[1753183575527,1e-08,3701.1,3701.0,2.9535694]
[1753183575933,4.21000001,3701.1,3701.0,2.9535694]
[1753183577428,1e-08,3701.1,3701.0,2.9535694]
[1753183577590,4.21000001,3701.1,3701.0,3.53257197]
[1753183578029,4.21000001,3701.1,3701.0,2.9535694]
[1753183578829,4.64530001,3701.1,3701.0,2.95365504]
[1753183579129,4.64530001,3701.1,3701.0,0.25168261]
[1753183579507,19.93750001,3701.1,3701.0,0.25168261]
[1753183579692,14.50000001,3701.1,3701.0,2.95365504]
[1753183579894,1e-08,3701.1,3701.0,9.4364661]
[1753183580910,0.002,3701.9,3701.4,2.70168044]
[1753183581129,0.002,3701.9,3701.8,2.83578851]
[1753183581331,0.002,3701.9,3701.8,3.113485]
[1753183581513,0.002,3701.9,3701.8,3.552785]
[1753183581718,0.002,3701.9,3701.8,5.79316544]
[1753183581919,0.002,3701.9,3701.8,5.76615156]
[1753183582200,0.002,3701.9,3701.8,5.32685156]
[1753183582399,0.002,3701.9,3701.8,3.08647112]
[1753183582720,0.002,3701.9,3701.8,0.38508261]
[1753183583036,0.4373,3701.9,3701.8,0.38508261]
[1753183583332,0.4373,3701.9,3701.8,2.95207112]
[1753183583518,4.211,3701.9,3701.8,0.25068261]
[1753183583728,4.211,3701.9,3701.8,2.95207112]
[1753183583909,0.002,3701.9,3701.8,3.08647112]
[1753183584235,0.002,3701.9,3701.8,0.38508261]
[1753183584236,4.211,3701.9,3701.8,0.38508261]
[1753183584598,4.6463,3701.9,3701.8,0.38508261]
[1753183584799,4.6463,3701.9,3701.8,0.25068261]
[1753183585398,5.4229,3701.9,3701.8,0.25068261]
[1753183585736,8.12421554,3701.9,3701.8,0.25068261]
[1753183586948,11.67421554,3701.9,3701.8,0.25068261]
[1753183587439,26.17421554,3701.9,3701.8,0.25068261]
[1753183589838,2.70176804,3701.3,3701.0,0.001]
[1753183590020,4.209,3701.2,3701.1,0.25043986]
[1753183590226,0.002,3701.9,3701.1,1.03373986]
[1753183590539,4.21,3701.8,3701.2,0.25043986]
[1753183590703,4.21,3701.8,3701.3,0.25043986]
[1753183591041,4.21,3701.8,3701.4,0.25043986]
[1753183591201,4.21,3701.8,3701.5,0.25043986]
[1753183591402,4.21,3701.8,3701.6,0.25043986]
[1753183591601,4.21,3701.8,3701.7,0.25043986]
[1753183591840,6.91138851,3701.8,3701.7,0.25043986]
[1753183592210,4.21,3701.8,3701.7,0.25043986]
[1753183592814,4.209,3701.8,3701.7,0.25034747]
[1753183593215,4.209,3701.8,3701.4,2.70166931]
[1753183593538,0.002,3701.9,3701.5,0.25033615]
[1753183593708,4.209,3701.8,3701.6,0.25033615]
[1753183593906,4.209,3701.8,3701.7,0.25033615]
[1753183595856,7.72128851,3701.8,3701.7,0.25033615]
[1753183596144,8.15658851,3701.8,3701.7,0.25033615]
[1753183597363,11.15658851,3701.8,3701.7,0.25033615]
[1753183599251,25.65658851,3701.8,3701.7,0.25033615]
[1753183601146,25.65658851,3701.8,3701.0,0.001]
[1753183601147,6.50949943,3701.1,3701.0,0.001]
[1753183601331,10.71849943,3701.1,3701.0,0.001]
[1753183601571,11.15379943,3701.1,3701.0,0.001]
[1753183602776,25.65379943,3701.1,3701.0,0.001]
[1753183604682,25.65379943,3701.1,3700.2,0.1354]
[1753183604683,2.70248358,3700.3,3700.2,0.001]
[1753183604884,6.94626462,3700.3,3700.2,0.001]
[1753183605189,7.34778358,3700.3,3700.2,0.001]
[1753183606161,21.84778358,3700.3,3700.2,0.001]
[1753183606478,22.39778358,3700.3,3700.2,0.001]
[1753183606645,25.39778358,3700.3,3700.2,0.001]
[1753183608380,56.16288358,3700.3,3700.2,1e-08]
[1753183610388,51.95288358,3700.3,3700.2,1e-08]
[1753183610593,56.16288358,3700.3,3700.2,1e-08]
[1753183614072,56.16388358,3700.3,3700.2,1e-08]
[1753183615658,26.16388358,3700.3,3700.2,1e-08]
[1753183615878,56.16388358,3700.3,3700.2,1e-08]
[1753183619410,0.55,3696.9,3695.6,0.7841]
[1753183619564,2.70554488,3696.2,3695.7,0.2496957]
[1753183619769,2.7056696,3696.0,3695.8,0.2496957]
[1753183620081,5.59655396,3695.9,3695.8,0.4653]
[1753183620295,0.55,3696.7,3695.6,0.7841]
[1753183620497,4.30881485,3696.6,3695.6,0.7841]
[1753183620697,30.0,3696.5,3695.6,0.001]
[1753183620894,2.70577412,3695.8,3695.6,0.001]
[1753183621098,7.01367042,3695.7,3695.6,0.001]
[1753183621316,4.274,3695.7,3695.6,0.001]
[1753183621464,2.70542689,3696.3,3695.7,0.7955]
[1753183621664,4.275,3696.2,3695.7,0.7955]
[1753183622014,0.20474541,3696.7,3695.8,0.4653]
[1753183622205,4.277,3696.6,3695.8,0.4653]
[1753183622505,6.98219211,3696.6,3695.9,2.7056868]
[1753183622801,4.276,3696.5,3696.0,0.4653]
[1753183623008,4.276,3696.4,3696.1,3.50079252]
[1753183623302,4.275,3696.3,3696.2,0.4653]
[1753183623595,4.275,3696.3,3696.2,0.92864899]
[1753183623901,2.71863659,3696.8,3696.2,3.63407527]
[1753183624067,4.275,3696.7,3696.3,0.7718]
[1753183624269,4.48119399,3696.7,3696.4,2.70532987]
[1753183624502,0.20619399,3696.7,3696.5,0.4653]
[1753183624704,2.71863659,3696.8,3696.5,1.17642483]
[1753183624876,4.274,3696.6,3696.5,3.41636051]
[1753183625203,2.71863659,3696.8,3696.7,2.70511537]
[1753183625399,2.71863659,3696.8,3696.5,0.7702]
[1753183625400,6.99363659,3696.8,3696.5,0.7702]
[1753183625580,6.99363659,3696.8,3696.7,0.4653]
[1753183627173,11.3591076,3693.2,3693.1,0.001]
[1753183627571,16.0651076,3693.2,3693.1,0.001]
[1753183627781,11.45859102,3693.2,3693.1,0.001]
[1753183627986,16.16359102,3693.2,3693.1,0.001]
[1753183628475,16.71359102,3693.2,3693.1,0.001]
[1753183632729,16.51378797,3693.2,3693.1,0.001]
[1753183635600,11.80878797,3693.2,3693.1,0.001]
[1753183635801,16.49078797,3693.2,3693.1,0.001]
[1753183637235,5.551109,3693.2,3693.1,0.001]
[1753183637394,2.70726043,3693.8,3693.1,0.001]
[1753183637395,2.70743633,3693.6,3693.1,1.222]